bitfinex/quotes_SOLUSD_20251216
["timestamp","ask_amount","ask_price","bid_price","bid_amount"]
[1765877188173,10.81343165,126.29,126.28,0.2]
[1765877188962,11.51343165,126.29,126.28,0.2]
[1765877190494,10.81343165,126.29,126.28,0.2]
[1765877190669,11.51343165,126.29,126.28,0.2]
[1765877194282,7.91828331,126.29,126.28,0.2]
[1765877194469,10.81343165,126.29,126.28,0.2]
[1765877194781,2.89514834,126.29,126.28,0.88]
[1765877194960,8.63452314,126.35,126.28,28.59598697]
[1765877195281,2.89514834,126.32,126.29,0.68]
[1765877195776,10.81170351,126.32,126.29,8.598217]
[1765877196184,2.89514834,126.31,126.3,0.68]
[1765877196353,7.91655517,126.32,126.3,0.68]
[1765877196557,2.89514834,126.31,126.3,0.68]
[1765877197404,8.63645678,126.32,126.29,7.918217]
[1765877197558,2.89514834,126.31,126.29,8.598217]
[1765877197765,2.89514834,126.3,126.29,0.68]
[1765877198374,10.81225527,126.31,126.29,0.68]
[1765877198765,2.89514834,126.31,126.29,0.68]
[1765877199098,2.89514834,126.31,126.29,8.59809536]
[1765877199460,2.89514834,126.31,126.3,0.68]
[1765877200091,10.8112051,126.33,126.3,8.5976113]
[1765877200469,10.8112051,126.33,126.31,0.68]
[1765877203300,2.89514834,126.32,126.29,7.91795383]
[1765877203504,2.89514834,126.32,126.3,0.68]
[1765877203704,7.91605676,126.33,126.3,0.68]
[1765877203894,2.89514834,126.32,126.3,0.68]
[1765877204413,2.89514834,126.32,126.3,8.59756737]
[1765877204885,2.89514834,126.32,126.31,0.68]
[1765877208717,13.0470912,126.34,126.31,8.59697944]
[1765877208895,2.89514834,126.33,126.31,0.68]
[1765877209231,2.89514834,126.32,126.29,8.59796855]
[1765877209389,2.89514834,126.31,126.29,8.59796855]
[1765877210326,0.72,126.32,126.29,8.59796855]
[1765877210501,3.61514834,126.32,126.29,8.59796855]
[1765877211031,2.89514834,126.31,126.29,0.68]
[1765877211388,3.61514834,126.31,126.29,0.68]
[1765877211588,2.89514834,126.3,126.29,0.68]
[1765877211914,2.89514834,126.3,126.28,79.33885657]
[1765877212127,2.89366691,126.3,126.28,78.65885657]
[1765877212316,2.89366691,126.3,126.29,0.68]
[1765877212700,2.89366691,126.3,126.28,0.2]
[1765877213012,2.89366691,126.3,126.28,0.88]
[1765877213315,10.81132478,126.3,126.28,0.88]
[1765877213516,15.94075811,126.31,126.29,0.68]
[1765877214319,23.85779595,126.31,126.29,0.68]
[1765877215014,20.96412904,126.31,126.29,0.68]
[1765877215199,23.85779595,126.31,126.29,0.68]
[1765877215891,2.89366691,126.3,126.29,0.68]
[1765877217716,2.89366691,126.3,126.28,0.2]
[1765877217920,2.89366691,126.3,126.29,0.68]
[1765877221020,11.53145426,126.3,126.28,0.2]
[1765877221319,2.89366691,126.29,126.28,0.2]
[1765877221722,2.89366691,126.29,126.28,0.88]
[1765877224311,11.49195022,126.29,126.28,0.2]
[1765877226821,20.13195022,126.29,126.28,0.2]
[1765877227898,41.98898634,126.29,126.28,0.2]
[1765877228912,28.94189514,126.29,126.28,0.2]
[1765877233599,11.70361183,126.28,126.27,0.2]
[1765877233817,12.38361183,126.28,126.27,0.2]
[1765877234304,28.3939916,126.29,126.27,0.2]
[1765877234504,3.57366691,126.28,126.27,0.2]
[1765877235400,24.53966846,126.28,126.27,0.2]
[1765877236524,23.85966846,126.28,126.27,0.2]
[1765877236707,24.53966846,126.28,126.27,0.2]
[1765877237824,33.34961338,126.28,126.27,0.2]
[1765877238320,8.80994492,126.27,126.26,0.2]
[1765877238529,28.94314932,126.27,126.26,0.2]
[1765877239336,33.05557579,126.27,126.26,0.2]
[1765877239636,33.05557579,126.27,126.2,0.2]
[1765877239637,2.89366691,126.23,126.2,0.92]
[1765877239928,21.6870912,126.24,126.2,0.92]
[1765877240107,13.0470912,126.23,126.21,0.72]
[1765877240307,15.94075811,126.23,126.21,0.72]
[1765877240917,23.86312656,126.23,126.21,0.72]
[1765877241828,10.81532153,126.24,126.21,0.72]
[1765877242031,7.92016473,126.26,126.21,31.34506746]
[1765877242336,23.91235292,126.27,126.21,31.34506746]
[1765877242337,10.8133987,126.27,126.22,2.89366691]
[1765877242506,10.8133987,126.27,126.22,3.61366691]
[1765877242707,10.8133987,126.27,126.23,0.72]
[1765877243202,2.89366691,126.26,126.23,8.64166784]
[1765877243604,2.89366691,126.26,126.24,0.72]
[1765877247539,4.52457269,126.26,126.24,0.72]
[1765877248054,4.52457269,126.25,126.21,70.54]
[1765877248231,4.52457269,126.24,126.22,0.72]
[1765877248435,4.52457269,126.23,126.22,0.72]
[1765877248740,17.57166389,126.23,126.22,0.72]
[1765877249721,25.49371094,126.23,126.22,0.72]
[1765877249920,25.49371094,126.23,126.2,16.76362938]
[1765877250120,25.49371094,126.23,126.22,0.72]
[1765877254429,20.96913825,126.23,126.22,0.72]
[1765877255035,4.52457269,126.25,126.22,0.72]
[1765877255245,7.92121531,126.25,126.22,0.72]
[1765877256357,7.92121531,126.25,126.22,8.64241751]
[1765877256546,7.92121531,126.25,126.23,0.71]
[1765877258155,32.8856925,126.25,126.23,0.71]
[1765877258952,24.96447719,126.25,126.23,8.63201122]
[1765877259162,24.96447719,126.25,126.24,0.71]
[1765877260656,24.96447719,126.25,126.24,8.63141951]
[1765877263371,24.96447719,126.25,126.24,70.53141951]
[1765877263735,24.96447719,126.25,126.24,62.61]
[1765877263939,24.96447719,126.25,126.24,61.9]
[1765877263940,29.48904988,126.25,126.24,61.9]
[1765877264173,37.40984195,126.25,126.24,61.9]
[1765877264677,29.48904988,126.25,126.24,62.61]
[1765877266272,38.11984195,126.25,126.24,61.9]
[1765877266462,30.19904988,126.25,126.24,61.9]
[1765877266666,29.48904988,126.25,126.24,62.61]
[1765877266969,24.96447719,126.25,126.24,62.61]
[1765877269382,24.96447719,126.25,126.24,0.71]
[1765877271274,24.96447719,126.25,126.23,0.71]
[1765877274580,24.96447719,126.25,126.23,8.63203318]
[1765877275980,32.88554756,126.25,126.23,0.71]
[1765877276168,38.12012025,126.25,126.23,0.71]
[1765877276571,37.41012025,126.25,126.23,0.71]
[1765877276971,32.88554756,126.25,126.23,0.71]
[1765877277173,32.88554756,126.25,126.23,8.63196216]
[1765877277174,24.96447719,126.25,126.23,8.63196216]
[1765877277559,24.96447719,126.25,126.24,9.35]
[1765877278280,24.96447719,126.25,126.24,17.27141951]
[1765877280178,24.96447719,126.25,126.24,9.35]
[1765877280480,24.96447719,126.25,126.24,8.64]
[1765877280684,24.96447719,126.25,126.24,9.35]
[1765877280855,30.19829908,126.25,126.22,79.17252522]
[1765877281189,29.48829908,126.25,126.23,0.71]
[1765877282171,29.48829908,126.25,126.22,70.54]
[1765877282172,37.40932892,126.25,126.22,70.54]
[1765877282376,5.23382189,126.24,126.22,71.24]
[1765877282579,38.08932892,126.25,126.22,79.16264893]
[1765877287200,38.08932892,126.25,126.22,17.26264893]
[1765877288488,4.52382189,126.24,126.22,17.26264893]
[1765877288691,38.08932892,126.25,126.22,17.26264893]
[1765877288864,4.52382189,126.24,126.22,17.26264893]
[1765877290066,29.48829908,126.25,126.23,0.7]
[1765877291093,4.52382189,126.24,126.22,8.64]
[1765877291268,4.52382189,126.24,126.22,9.34]
[1765877294493,4.52382189,126.24,126.22,17.2625571]
[1765877295793,33.56539525,126.25,126.22,17.2625571]
[1765877295978,4.52382189,126.24,126.22,17.2625571]
[1765877297378,38.08921714,126.25,126.22,17.2625571]
[1765877297892,29.48829908,126.25,126.23,0.7]
[1765877298080,24.96447719,126.25,126.23,0.7]
[1765877300098,24.96447719,126.25,126.24,8.64]
[1765877300872,30.16829908,126.25,126.24,8.64]
[1765877301199,30.16829908,126.25,126.22,79.16247964]
[1765877301396,4.52382189,126.24,126.23,0.7]
[1765877301701,29.48829908,126.25,126.23,8.62204705]
[1765877302996,5.20382189,126.24,126.23,7.92204705]
[1765877303182,4.52382189,126.24,126.23,7.92204705]
[1765877303598,30.16829908,126.25,126.23,7.92204705]
[1765877305497,4.52382189,126.24,126.23,7.92204705]
[1765877307411,2.89656247,126.24,126.23,7.92204705]
[1765877307709,28.54103966,126.25,126.23,8.62204705]
[1765877309400,27.86103966,126.25,126.23,8.62204705]
[1765877309607,27.86103966,126.25,126.23,0.7]
[1765877309608,36.46191318,126.25,126.23,0.7]
[1765877312122,24.96447719,126.25,126.23,8.62203797]
[1765877312482,24.96447719,126.25,126.24,0.69]
[1765877316717,24.96447719,126.25,126.23,0.69]
[1765877317384,24.96447719,126.25,126.23,8.61182147]
[1765877317586,24.96447719,126.25,126.23,11.50838394]
[1765877317895,24.96447719,126.25,126.24,0.69]
[1765877318288,24.96447719,126.25,126.24,9.33]
[1765877319917,24.96447719,126.25,126.24,20.14798198]
[1765877320122,24.96447719,126.25,126.24,17.25141951]
[1765877322925,24.96447719,126.25,126.24,79.15141951]
[1765877328618,28.52103966,126.25,126.24,70.54]
[1765877328818,36.44183173,126.25,126.22,79.15253986]
[1765877329523,28.52103966,126.25,126.22,79.15253986]
[1765877329719,24.96447719,126.25,126.23,8.61200366]
[1765877330537,24.96447719,126.25,126.23,17.25200366]
[1765877331530,24.96447719,126.25,126.24,0.69]
[1765877331728,24.96447719,126.25,126.24,8.61141951]
[1765877334747,24.96447719,126.25,126.24,70.51141951]
[1765877339350,24.96447719,126.25,126.24,69.82141951]
[1765877340526,24.96447719,126.25,126.24,61.9]
[1765877340724,24.96447719,126.25,126.23,79.15174174]
[1765877340942,3.55656247,126.24,126.23,61.9]
[1765877341157,0.66,126.24,126.23,61.9]
[1765877341745,36.44199117,126.25,126.23,61.9]
[1765877343150,0.67,126.24,126.23,61.9]
[1765877344247,3.56656247,126.24,126.23,61.9]
[1765877345726,2.89656247,126.24,126.23,61.9]
[1765877346528,2.89656247,126.24,126.22,79.15258973]
[1765877346733,3.56639574,126.24,126.22,79.15258973]
[1765877348054,2.89639574,126.24,126.22,78.46258973]
[1765877348247,35.78182444,126.25,126.23,0.69]
[1765877348734,36.45182444,126.25,126.23,0.69]
[1765877348938,33.5554287,126.25,126.23,0.69]
[1765877349140,24.96447719,126.25,126.23,0.69]
[1765877349454,24.96447719,126.25,126.23,8.61199574]
[1765877349626,24.96447719,126.25,126.24,9.35]
[1765877350728,24.96447719,126.25,126.24,17.27141951]
[1765877355263,24.96447719,126.25,126.24,9.35]
[1765877355464,24.96447719,126.25,126.24,71.25]
[1765877355846,28.53087293,126.25,126.24,70.56]
[1765877356159,28.53087293,126.25,126.24,61.9]
[1765877357273,36.451665,126.25,126.24,61.9]
[1765877360470,33.55526926,126.25,126.24,61.9]
[1765877360664,24.96447719,126.25,126.24,61.9]
[1765877360967,24.96447719,126.25,126.24,62.59]
[1765877361341,24.96447719,126.25,126.24,0.69]
[1765877365768,24.96447719,126.25,126.24,8.61141951]
[1765877369142,24.96447719,126.25,126.24,7.92141951]
[1765877370760,24.96447719,126.25,126.24,8.61141951]
[1765877372448,29.48880254,126.25,126.23,70.51170554]
[1765877372769,29.48880254,126.25,126.23,61.9]
[1765877372770,30.16880254,126.25,126.23,61.9]
[1765877372969,30.16880254,126.25,126.23,62.59]
[1765877373968,29.48880254,126.25,126.23,62.59]
[1765877374270,29.48880254,126.25,126.23,69.821935]
[1765877374474,29.48880254,126.25,126.24,0.69]
[1765877374656,24.96447719,126.25,126.24,0.69]
[1765877374973,24.96447719,126.25,126.24,9.35]
[1765877375877,29.48880254,126.25,126.24,8.66]
[1765877377578,29.48880254,126.25,126.24,9.35]
[1765877378351,24.96447719,126.25,126.24,9.35]
[1765877378659,24.96447719,126.25,126.24,17.27141951]
[1765877380574,13.12398977,126.27,126.24,17.27141951]
[1765877385280,13.12398977,126.27,126.25,0.69]
[1765877385481,13.0470912,126.28,126.25,8.61071132]
[1765877385684,23.80668967,126.29,126.26,13.18432535]
[1765877385863,13.12164689,126.31,126.26,13.87432535]
[1765877386058,13.12164689,126.31,126.27,0.69]
[1765877387260,13.12164689,126.31,126.27,8.60928089]
[1765877387983,12.44164689,126.31,126.27,8.60928089]
[1765877388179,0.68,126.3,126.27,8.60928089]
[1765877388371,4.52432535,126.3,126.28,0.69]
[1765877388687,5.20432535,126.3,126.28,0.69]
[1765877388883,4.52432535,126.3,126.28,0.69]
[1765877389794,5.20432535,126.31,126.28,0.69]
[1765877390083,4.52432535,126.31,126.28,0.69]
[1765877390288,13.0470912,126.32,126.28,13.13267733]
[1765877390469,13.12029179,126.33,126.29,8.66]
[1765877390670,13.12029179,126.33,126.29,9.35]
[1765877390867,13.12029179,126.33,126.3,0.69]
[1765877391758,0.68,126.32,126.29,16.5780394]
[1765877391985,4.52432535,126.31,126.29,8.66]
[1765877392489,5.20432535,126.31,126.29,8.66]
[1765877393774,5.20432535,126.31,126.29,9.35]
[1765877394183,0.68,126.31,126.29,9.35]
[1765877395093,4.52432535,126.3,126.29,8.66]
[1765877395392,13.12154669,126.31,126.29,8.66]
[1765877395891,5.20432535,126.31,126.29,8.66]
[1765877396191,5.20432535,126.31,126.29,9.35]
[1765877396694,5.20432535,126.31,126.29,0.69]
[1765877401420,4.52432535,126.32,126.29,8.60797012]
[1765877401586,4.52432535,126.33,126.29,13.13229547]
[1765877401777,4.52432535,126.33,126.3,0.69]
[1765877401981,26.16689011,126.34,126.3,0.69]
[1765877402381,4.52432535,126.33,126.3,0.69]
[1765877402593,5.22432535,126.33,126.3,0.69]
[1765877402788,5.22432535,126.32,126.29,8.61797012]
[1765877403587,4.52432535,126.31,126.29,8.61797012]
[1765877403900,28.93946603,126.31,126.29,7.91797012]
[1765877404099,24.41514068,126.31,126.3,0.7]
[1765877405104,24.41514068,126.31,126.3,5.22432535]
[1765877406305,24.41514068,126.31,126.3,13.14198172]
[1765877408104,24.41514068,126.31,126.3,26.47625199]
[1765877408598,24.41514068,126.31,126.3,50.2640647]
[1765877409391,24.41514068,126.31,126.3,58.9040647]
[1765877410791,24.41514068,126.31,126.3,71.9511559]
[1765877410984,0.7,126.37,126.31,8.80994492]
[1765877411198,13.7470912,126.38,126.34,4.52432535]
[1765877411387,13.7470912,126.38,126.35,8.64]
[1765877411586,4.62432535,126.39,126.35,13.86432535]
[1765877411808,0.8,126.39,126.36,0.7]
[1765877412111,0.7,126.38,126.36,0.7]
[1765877412707,0.7,126.38,126.37,7.91327055]
[1765877413506,0.7,126.38,126.36,7.91358463]
[1765877413812,13.12749094,126.38,126.35,8.64]
[1765877414316,0.7,126.37,126.35,8.64]
[1765877417284,13.12802972,126.37,126.33,16.55547602]
[1765877417511,13.12802972,126.37,126.33,17.25547602]
[1765877417819,0.7,126.36,126.33,17.25547602]
[1765877418811,5.21458223,126.36,126.33,17.25547602]
[1765877419206,5.21458223,126.36,126.34,7.9150554]
[1765877422293,4.51458223,126.36,126.34,7.9150554]
[1765877422493,0.7,126.38,126.35,9.34]
[1765877423608,0.7,126.38,126.36,7.9138968]
[1765877424619,5.21458223,126.38,126.36,7.9138968]
[1765877426322,5.21458223,126.37,126.35,17.2541959]
[1765877426820,4.51458223,126.37,126.35,17.2541959]
[1765877427208,5.21458223,126.37,126.35,17.2541959]
[1765877428221,5.21458223,126.36,126.32,0.7]
[1765877428421,4.51458223,126.34,126.32,8.61582677]
[1765877429724,4.51458223,126.34,126.31,16.55661477]
[1765877429725,5.21458223,126.33,126.31,16.55661477]
[1765877429905,4.51458223,126.32,126.29,15.83238279]
[1765877430225,4.51458223,126.3,126.29,8.64]
[1765877430407,4.51458223,126.3,126.28,8.61867916]
[1765877430730,4.51458223,126.29,126.28,9.34]
[1765877431627,2.89410733,126.29,126.28,17.25891035]
[1765877432130,2.89410733,126.32,126.28,17.25891035]
[1765877432329,3.61410733,126.32,126.29,0.68]
[1765877433128,8.636009,126.33,126.29,8.59790237]
[1765877433300,2.89410733,126.32,126.29,8.59790237]
[1765877433617,2.89410733,126.32,126.3,0.66]
[1765877433813,3.61410733,126.32,126.3,0.66]
[1765877434009,3.61410733,126.32,126.29,8.57790237]
[1765877434626,2.89410733,126.32,126.3,0.66]
[1765877435006,3.61410733,126.33,126.3,8.57731358]
[1765877435500,2.89410733,126.31,126.26,7.91517374]
[1765877435712,2.89410733,126.28,126.27,8.57946737]
[1765877435911,2.89410733,126.29,126.27,8.57946737]
[1765877436312,2.89410733,126.3,126.27,8.57946737]
[1765877436632,3.61410733,126.3,126.27,8.57946737]
[1765877437338,2.89410733,126.29,126.27,8.57946737]
[1765877438118,0.72,126.3,126.27,8.57946737]
[1765877438325,2.89410733,126.29,126.27,8.57946737]
[1765877438626,3.61410733,126.31,126.28,8.57872443]
[1765877438832,2.89410733,126.31,126.28,8.57872443]
[1765877439036,0.72,126.31,126.28,8.57872443]
[1765877439218,3.61410733,126.31,126.28,8.57872443]
[1765877439929,2.89410733,126.31,126.28,7.91872443]
[1765877440132,3.61410733,126.32,126.29,0.66]
[1765877440317,3.61410733,126.32,126.29,9.3]
[1765877441133,2.89410733,126.33,126.3,0.66]
[1765877441335,3.61410733,126.33,126.3,0.66]
[1765877442028,3.61410733,126.33,126.3,8.57748133]
[1765877444338,20.96249624,126.34,126.3,8.57748133]
[1765877444339,2.89410733,126.34,126.31,0.66]
[1765877444533,3.61410733,126.34,126.31,9.3]
[1765877444928,10.8087618,126.35,126.31,8.64]
[1765877445238,11.5287618,126.35,126.32,0.66]
[1765877445426,8.63465447,126.35,126.32,0.66]
[1765877445740,3.61410733,126.35,126.32,0.66]
[1765877445915,17.18293936,126.36,126.32,0.66]
[1765877446110,16.66119853,126.36,126.32,0.66]
[1765877446310,16.66119853,126.36,126.33,7.91577614]
[1765877446635,3.61410733,126.35,126.32,7.91629214]
[1765877446833,2.89410733,126.34,126.32,7.91629214]
[1765877447034,3.61410733,126.34,126.32,7.91629214]
[1765877448328,11.52934326,126.34,126.31,16.55694876]
[1765877448527,0.72,126.33,126.31,16.55694876]
[1765877448734,11.52934326,126.34,126.31,17.21694876]
[1765877449636,10.80893532,126.35,126.32,0.66]
[1765877449836,11.52893532,126.35,126.32,0.66]
[1765877450551,11.52893532,126.35,126.32,8.57614854]
[1765877450742,13.0470912,126.36,126.33,0.66]
[1765877450743,16.66119853,126.36,126.33,0.66]
[1765877450930,15.94119853,126.36,126.33,0.66]
[1765877451254,16.66119853,126.36,126.33,0.66]
[1765877452551,8.63355976,126.37,126.33,8.5755246]
[1765877452760,10.80766709,126.37,126.33,8.5755246]
[1765877452959,0.72,126.36,126.33,8.5755246]
[1765877453254,27.6147846,126.34,126.31,17.21665582]
[1765877453633,28.3347846,126.34,126.31,17.21665582]
[1765877454159,28.3347846,126.34,126.32,0.66]
[1765877454356,28.3347846,126.34,126.32,8.57632657]
[1765877454523,27.6147846,126.34,126.32,8.57632657]
[1765877455162,24.72067727,126.34,126.32,8.57632657]
[1765877460428,24.72067727,126.34,126.33,0.66]
[1765877460833,24.72067727,126.34,126.33,65.45410733]
[1765877461761,24.72067727,126.34,126.33,74.09410733]
[1765877461967,24.72067727,126.34,126.33,71.2]
[1765877462548,24.72067727,126.34,126.33,79.11577614]
[1765877463362,24.72067727,126.34,126.33,79.13577614]
[1765877463769,24.72067727,126.34,126.33,78.45577614]
[1765877463965,25.41067727,126.34,126.33,70.54]
[1765877464268,24.72067727,126.34,126.33,70.54]
[1765877464765,24.72067727,126.34,126.33,79.13577614]
[1765877465264,24.72067727,126.34,126.33,78.45577614]
[1765877465465,24.72067727,126.34,126.33,16.55577614]
[1765877466261,24.72067727,126.34,126.33,8.64]
[1765877467239,24.72067727,126.34,126.33,17.23577614]
[1765877467446,24.72067727,126.34,126.33,16.55577614]
[1765877468372,24.72067727,126.34,126.33,17.23577614]
[1765877468672,24.72067727,126.34,126.33,16.55577614]
[1765877470266,24.72067727,126.34,126.33,8.64]
[1765877471141,24.72067727,126.34,126.33,17.23577614]
[1765877472668,24.72067727,126.34,126.33,9.32]
[1765877472869,24.72067727,126.34,126.33,8.64]
[1765877473471,24.72067727,126.34,126.33,17.23577614]
[1765877474165,24.72067727,126.34,126.33,9.32]
[1765877474369,24.72067727,126.34,126.33,8.64]
[1765877474582,24.72067727,126.34,126.33,16.55577614]
[1765877475945,24.72067727,126.34,126.33,8.64]
[1765877476564,24.72067727,126.34,126.33,20.12988347]
[1765877477147,24.72067727,126.34,126.33,82.02988347]
[1765877477648,24.72067727,126.34,126.33,82.02527738]
[1765877478484,24.72067727,126.34,126.33,90.8352223]
[1765877478648,0.1,126.39,126.34,8.80994492]
[1765877478845,0.1,126.39,126.36,2.88950124]
[1765877479043,0.1,126.39,126.37,8.64]
[1765877479254,0.1,126.39,126.37,9.32]
[1765877480467,0.1,126.39,126.38,7.9126444]
[1765877480868,0.1,126.39,126.37,17.23299675]
[1765877483275,0.79,126.39,126.37,17.23299675]
[1765877484163,0.79,126.39,126.37,16.55299675]
[1765877485284,0.79,126.39,126.37,8.64]
[1765877485470,11.59179891,126.39,126.37,8.64]
[1765877485664,11.59179891,126.39,126.35,78.4542152]
[1765877485975,0.69,126.38,126.35,79.1342152]
[1765877487264,8.60267697,126.38,126.35,78.4542152]
[1765877487459,11.49217821,126.38,126.35,78.4542152]
[1765877487673,0.69,126.38,126.35,79.1342152]
[1765877488260,0.69,126.38,126.35,78.4542152]
[1765877488477,0.69,126.38,126.35,79.1342152]
[1765877489591,0.69,126.38,126.35,81.34371644]
[1765877489762,0.1,126.39,126.36,0.68]
[1765877490091,0.1,126.39,126.36,3.56950124]
[1765877490488,0.1,126.39,126.37,9.32]
[1765877490877,0.1,126.39,126.38,3.56950124]
[1765877491464,0.1,126.39,126.38,5.19242947]
[1765877491660,0.1,126.39,126.38,13.10507387]
[1765877494971,0.1,126.39,126.38,75.00507387]
[1765877500893,0.76,126.39,126.38,69.8126444]
[1765877501193,5.27242947,126.39,126.36,16.55358534]
[1765877501504,0.66,126.38,126.36,16.55358534]
[1765877503584,0.66,126.38,126.36,17.25358534]
[1765877504878,0.66,126.38,126.36,16.55358534]
[1765877505080,0.66,126.38,126.36,17.25358534]
[1765877505390,0.1,126.39,126.37,5.21242947]
[1765877505598,0.1,126.39,126.38,8.64]
[1765877505770,0.1,126.39,126.38,9.34]
[1765877506898,0.1,126.39,126.38,71.24]
[1765877507606,0.1,126.39,126.38,79.1526444]
[1765877507803,0.1,126.39,126.38,78.4526444]
[1765877507984,0.76,126.39,126.38,70.54]
[1765877508498,0.76,126.39,126.38,78.4526444]
[1765877508802,0.76,126.39,126.38,70.54]
[1765877509478,0.76,126.39,126.38,61.9]
[1765877511296,13.18444782,126.39,126.38,61.9]
[1765877511995,12.18444782,126.39,126.38,61.9]
[1765877512307,0.1,126.4,126.38,61.9]
[1765877512880,0.1,126.4,126.37,79.15299928]
[1765877513914,0.34,126.4,126.37,79.15299928]
[1765877514714,0.1,126.4,126.38,0.7]
[1765877516620,0.1,126.4,126.38,8.61241948]
[1765877516911,0.34,126.4,126.37,78.45300406]
[1765877517089,0.34,126.4,126.37,79.15300406]
[1765877517289,4.85242947,126.4,126.37,79.15300406]
[1765877518119,0.24,126.39,126.37,78.45300406]
[1765877518418,0.24,126.39,126.37,79.15300406]
[1765877518898,4.85242947,126.4,126.37,79.15300406]
[1765877520719,0.24,126.39,126.37,78.45300406]
[1765877521219,12.76396269,126.4,126.37,79.15300406]
[1765877522305,8.25153322,126.4,126.37,79.15300406]
[1765877522623,12.76396269,126.4,126.37,79.15300406]
[1765877524019,12.76396269,126.4,126.38,0.7]
[1765877524020,0.1,126.4,126.38,0.7]
[1765877524223,0.1,126.4,126.38,5.21242947]
[1765877524518,0.1,126.4,126.39,13.15242947]
[1765877524698,0.1,126.4,126.39,13.85242947]
[1765877525702,0.1,126.4,126.39,21.76444782]
[1765877529620,0.1,126.4,126.39,17.25201835]
[1765877529820,0.1,126.4,126.39,21.76444782]
[1765877533026,0.1,126.4,126.39,92.47439274]
[1765877535014,0.1,126.43,126.4,61.8]
[1765877535305,0.1,126.43,126.42,4.51242947]
[1765877535828,0.1,126.43,126.41,9.34]
[1765877536130,0.1,126.43,126.42,13.12257027]
[1765877537322,0.1,126.43,126.42,83.73251519]
[1765877537735,0.1,126.43,126.42,74.92257027]
[1765877543741,0.1,126.43,126.42,74.91925277]
[1765877547243,0.1,126.44,126.43,8.80994492]
[1765877547444,24.36731607,126.46,126.43,84.45905689]
[1765877547743,0.1,126.47,126.46,8.80994492]
[1765877547952,0.1,126.47,126.46,84.45905689]
[1765877548245,0.1,126.47,126.46,79.94994492]
[1765877548423,0.1,126.47,126.46,84.45905689]
[1765877549052,0.1,126.47,126.46,92.36669566]
[1765877550655,0.1,126.5,126.46,151.67398649]
[1765877550830,0.1,126.5,126.47,0.7]
[1765877551039,0.1,126.5,126.49,4.50911197]
[1765877551527,0.1,126.5,126.49,3.5930712]
[1765877552438,0.1,126.5,126.49,11.4988345]
[1765877552947,0.1,126.5,126.49,8.5657633]
[1765877553148,0.1,126.5,126.49,7.9057633]
[1765877553837,0.1,126.5,126.49,73.2488345]
[1765877554040,0.1,126.5,126.49,70.3657633]
[1765877554229,0.1,126.5,126.49,73.2488345]
[1765877555746,0.34,126.5,126.49,69.7057633]
[1765877555945,0.1,126.5,126.49,78.3457633]
[1765877556335,0.1,126.5,126.49,79.0057633]
[1765877557436,0.1,126.5,126.49,17.2057633]
[1765877560665,0.1,126.5,126.49,20.0888345]
[1765877566438,0.1,126.5,126.49,81.8888345]
[1765877566950,0.1,126.5,126.49,90.69877942]
[1765877568163,0.1,126.5,126.49,87.81570822]
[1765877568369,0.1,126.5,126.49,90.69877942]
[1765877568540,0.1,126.52,126.5,8.80994492]
[1765877568861,0.1,126.52,126.51,11.5230712]
[1765877569038,0.1,126.52,126.51,12.1830712]
[1765877570566,0.1,126.52,126.51,20.08758467]
[1765877571264,0.1,126.52,126.51,28.89752959]
[1765877571452,0.1,126.52,126.51,90.69752959]
[1765877571768,0.1,126.52,126.51,114.44579794]
[1765877572451,40.37191497,126.53,126.52,16.71383363]
[1765877572651,40.37191497,126.53,126.52,82.05690483]
[1765877573164,40.37191497,126.53,126.52,105.80517318]
[1765877574989,0.1,126.56,126.52,165.08433852]
[1765877575184,0.1,126.56,126.55,2.8830712]
[1765877575477,0.1,126.56,126.55,11.5230712]
[1765877575676,0.1,126.56,126.55,12.1830712]
[1765877575878,0.1,126.56,126.55,28.89503113]
[1765877576253,24.6701624,126.63,126.56,8.80994492]
[1765877576254,0.1,126.63,126.56,8.80994492]
[1765877576459,0.24,126.62,126.58,8.80994492]